fUST/lending_fUST_20250527
["ID","MTS","AMOUNT","RATE_DAILY","PERIOD"]
[362479035,1748332233465,-430.0,0.00019178,2]
[362479037,1748332233475,-430.0,0.00019178,2]
[362479039,1748332233485,-194.04528898,0.00019178,2]
[362479041,1748332233496,-662.19,0.00019178,2]
[362479042,1748332233506,-400.0,0.00019178,2]
[362479043,1748332233515,-400.0,0.00019178,2]
[362479044,1748332233525,-430.0,0.00019178,2]
[362479045,1748332233534,-430.0,0.00019178,2]
[362479046,1748332233543,-430.0,0.00019178,2]
[362479047,1748332233553,-449.15,0.00019178,2]
[362479048,1748332233563,-430.0,0.00019178,2]
[362479049,1748332233572,-472.47,0.00019178,2]
[362479050,1748332233582,-430.0,0.00019178,2]
[362479051,1748332233592,-430.0,0.00019178,2]
[362479052,1748332233601,-430.0,0.00019178,2]
[362479053,1748332233611,-561.83503069,0.00019178,2]
[362479054,1748332233621,-430.0,0.00019178,2]
[362479055,1748332233631,-1265.02,0.00019178,2]
[362479056,1748332233641,-400.0,0.00019178,2]
[362479057,1748332233651,-430.0,0.00019178,2]
[362479058,1748332233661,-430.0,0.00019178,2]
[362479059,1748332233671,-288.6960036,0.00019178,2]
[362479060,1748332233681,-405.30960138,0.00019178,2]
[362479061,1748332233691,-430.0,0.00019178,2]
[362479062,1748332233701,-306.33,0.00019178,2]
[362479063,1748332233710,-562.78,0.00019178,2]
[362479064,1748332233721,-430.0,0.00019178,2]
[362479065,1748332233731,-159.63176921,0.00019178,2]
[362479083,1748332238539,-165.8000442,0.00018574,2]
[362479084,1748332238549,-629.4462081,0.00019177,2]
[362479085,1748332238560,-270.36823079,0.00019178,2]
[362479086,1748332238571,-290.9141955,0.00019178,2]
[362479087,1748332238581,-430.0,0.00019178,2]
[362479088,1748332238591,-430.0,0.00019178,2]
[362479089,1748332238600,-510.0,0.00019178,2]
[362479090,1748332238610,-430.0,0.00019178,2]
[362479091,1748332238620,-430.0,0.00019178,2]
[362479092,1748332238630,-400.0,0.00019178,2]
[362479093,1748332238640,-430.0,0.00019178,2]
[362479095,1748332238650,-430.0,0.00019178,2]
[362479097,1748332238659,-298.79108871,0.00019178,2]
[362479099,1748332238669,-400.0,0.00019178,2]
[362479102,1748332238684,-439.23,0.00019178,2]
[362479103,1748332238696,-300.0,0.00019178,2]
[362479104,1748332238706,-430.0,0.00019178,2]
[362479105,1748332238716,-430.0,0.00019178,2]
[362479106,1748332238725,-432.66696203,0.00019178,2]
[362479107,1748332238735,-400.0,0.00019178,2]
[362479108,1748332238745,-406.75718402,0.00019178,2]
[362479109,1748332238754,-430.0,0.00019178,2]
[362479110,1748332238764,-430.0,0.00019178,2]
[362479111,1748332238774,-430.0,0.00019178,2]
[362479112,1748332238783,-430.0,0.00019178,2]
[362479113,1748332238793,-400.60158039,0.00019178,2]
[362479114,1748332238804,-317.31797803,0.00019178,2]
[362479194,1748332256627,-178.48202197,0.00019178,2]
[362479195,1748332256637,-430.0,0.00019178,2]
[362479196,1748332256646,-400.0,0.00019178,2]
[362479197,1748332256656,-400.0,0.00019178,2]
[362479198,1748332256666,-430.0,0.00019178,2]
[362479199,1748332256675,-430.0,0.00019178,2]
[362479200,1748332256685,-430.0,0.00019178,2]
[362479201,1748332256695,-430.0,0.00019178,2]
[362479202,1748332256704,-430.0,0.00019178,2]
[362479203,1748332256714,-430.0,0.00019178,2]
[362479204,1748332256723,-430.0,0.00019178,2]
[362479205,1748332256733,-565.74,0.00019178,2]
[362479206,1748332256742,-227.21281075,0.00019178,2]
[362479207,1748332256854,-430.0,0.00019178,2]
[362479208,1748332256865,-512.26967733,0.00019178,2]
[362479209,1748332256875,-400.0,0.00019178,2]
[362479210,1748332256884,-402.20685709,0.00019178,2]
[362479211,1748332256894,-430.0,0.00019178,2]
[362479212,1748332256904,-430.0,0.00019178,2]
[362479213,1748332256914,-400.0,0.00019178,2]
[362479214,1748332256923,-400.0,0.00019178,2]
[362479215,1748332256933,-430.09493162,0.00019178,2]
[362479216,1748332256943,-400.0,0.00019178,2]
[362479217,1748332256952,-430.0,0.00019178,2]
[362479218,1748332256962,-430.0,0.00019178,2]
[362479219,1748332256971,-430.0,0.00019178,2]
[362479220,1748332256981,-404.92823211,0.00019178,2]
[362479221,1748332256990,-430.0,0.00019178,2]
[362479222,1748332257000,-430.0,0.00019178,2]
[362479223,1748332257009,-430.0,0.00019178,2]
[362479224,1748332257019,-355.3384,0.00019178,2]
[362479225,1748332257028,-430.0,0.00019178,2]
[362479226,1748332257038,-430.0,0.00019178,2]
[362479227,1748332257048,-430.0,0.00019178,2]
[362479228,1748332257058,-933.91,0.00019178,2]
[362479229,1748332257067,-430.0,0.00019178,2]
[362479230,1748332257076,-436.36370377,0.00019178,2]
[362479231,1748332257086,-430.0,0.00019178,2]
[362479232,1748332257095,-430.0,0.00019178,2]
[362479233,1748332257104,-430.0,0.00019178,2]
[362479234,1748332257114,-732.2,0.00019178,2]
[362479235,1748332257123,-627.81,0.00019178,2]
[362479236,1748332257133,-401.96679683,0.00019178,2]
[362479237,1748332257142,-430.0,0.00019178,2]
[362479238,1748332257152,-430.0,0.00019178,2]
[362479239,1748332257161,-400.0,0.00019178,2]
[362479240,1748332257171,-500.0,0.00019178,2]
[362479241,1748332257180,-368.13026935,0.00019178,2]
[362479242,1748332257190,-500.0,0.00019178,2]
[362479243,1748332257199,-430.0,0.00019178,2]
[362479244,1748332257209,-649.99,0.00019178,2]
[362479245,1748332257218,-3755.93972224,0.00019178,2]
[362479246,1748332257228,-162.66225048,0.00019452,2]
[362479247,1748332257238,-430.0,0.00019452,2]
[362479248,1748332257248,-471.67,0.00019452,2]
[362479249,1748332257260,-430.0,0.00019452,2]
[362479250,1748332257270,-1600.87,0.00019452,2]
[362479251,1748332257279,-430.0,0.00019452,2]
[362479252,1748332257289,-430.0,0.00019452,2]
[362479253,1748332257299,-430.0,0.00019452,2]
[362479254,1748332257313,-430.0,0.00019452,2]
[362479255,1748332257322,-430.0,0.00019452,2]
[362479256,1748332257331,-430.0,0.00019452,2]
[362479257,1748332257343,-203.33055429,0.00019452,2]
[362479258,1748332257354,-430.0,0.00019452,2]
[362479259,1748332257364,-430.0,0.00019452,2]
[362479260,1748332257374,-662.19,0.00019452,2]
[362479261,1748332257383,-449.15,0.00019452,2]
[362479262,1748332257395,-152.14524398,0.00019452,2]
[362479263,1748332257405,-472.47,0.00019452,2]
[362479264,1748332257415,-430.0,0.00019452,2]
[362479265,1748332257424,-430.0,0.00019452,2]
[362479266,1748332257434,-1265.02,0.00019452,2]
[362479267,1748332257444,-430.0,0.00019452,2]
[362479268,1748332257453,-430.0,0.00019452,2]
[362479269,1748332257463,-562.78,0.00019452,2]
[362479270,1748332257472,-430.0,0.00019452,2]
[362479271,1748332257481,-430.0,0.00019452,2]
[362479272,1748332257491,-430.0,0.00019452,2]
[362479273,1748332257500,-430.0,0.00019452,2]
[362479274,1748332257509,-430.0,0.00019452,2]
[362479275,1748332257518,-439.23,0.00019452,2]
[362479276,1748332257528,-430.0,0.00019452,2]
[362479277,1748332257538,-430.0,0.00019452,2]
[362479278,1748332257547,-473.56,0.00019452,2]
[362479279,1748332257556,-430.0,0.00019452,2]
[362479280,1748332257566,-430.0,0.00019452,2]
[362479281,1748332257575,-430.0,0.00019452,2]
[362479282,1748332257584,-495.8,0.00019452,2]
[362479283,1748332257593,-430.0,0.00019452,2]
[362479284,1748332257603,-430.0,0.00019452,2]
[362479285,1748332257612,-430.0,0.00019452,2]
[362479286,1748332257622,-430.0,0.00019452,2]
[362479287,1748332257631,-430.0,0.00019452,2]
[362479288,1748332257641,-430.0,0.00019452,2]
[362479289,1748332257651,-430.0,0.00019452,2]
[362479290,1748332257661,-565.74,0.00019452,2]
[362479291,1748332257671,-430.0,0.00019452,2]
[362479292,1748332257682,-430.0,0.00019452,2]
[362479293,1748332257691,-430.0,0.00019452,2]
[362479294,1748332257701,-430.0,0.00019452,2]
[362479295,1748332257711,-430.0,0.00019452,2]
[362479296,1748332257721,-21.30618563,0.00019452,2]
[362479297,1748332257868,-408.69381437,0.00019452,2]
[362479298,1748332257879,-430.0,0.00019452,2]
[362479299,1748332257889,-933.91,0.00019452,2]
[362479300,1748332257898,-468.45,0.00019452,2]
[362479301,1748332257908,-430.0,0.00019452,2]
[362479302,1748332257917,-430.0,0.00019452,2]
[362479303,1748332258020,-732.2,0.00019452,2]
[362479304,1748332258030,-627.81,0.00019452,2]
[362479305,1748332258040,-430.0,0.00019452,2]
[362479306,1748332258050,-430.0,0.00019452,2]
[362479307,1748332258059,-649.99,0.00019452,2]
[362479308,1748332258068,-176.80455064,0.00019492,2]
[362479309,1748332258077,-161.34874002,0.00019626,2]
[362479310,1748332258087,-430.0,0.00019726,2]
[362479311,1748332258096,-430.0,0.00019726,2]
[362479312,1748332258105,-430.0,0.00019726,2]
[362479313,1748332258115,-430.0,0.00019726,2]
[362479314,1748332258124,-430.0,0.00019726,2]
[362479315,1748332258133,-430.0,0.00019726,2]
[362479316,1748332258143,-430.0,0.00019726,2]
[362479317,1748332258152,-430.0,0.00019726,2]
[362479318,1748332258161,-430.0,0.00019726,2]
[362479319,1748332258171,-208.52502202,0.00019726,2]
[362479320,1748332258181,-430.0,0.00019726,2]
[362479321,1748332258190,-430.0,0.00019726,2]
[362479322,1748332258200,-430.0,0.00019726,2]
[362479323,1748332258209,-430.0,0.00019726,2]
[362479324,1748332258219,-430.0,0.00019726,2]
[362479325,1748332258228,-430.0,0.00019726,2]
[362479326,1748332258238,-430.0,0.00019726,2]
[362479327,1748332258247,-430.0,0.00019726,2]
[362479328,1748332258257,-430.0,0.00019726,2]
[362479329,1748332258267,-430.0,0.00019726,2]
[362479330,1748332258277,-430.0,0.00019726,2]
[362479331,1748332258286,-430.0,0.00019726,2]
[362479332,1748332258296,-430.0,0.00019726,2]
[362479333,1748332258306,-430.0,0.00019726,2]
[362479334,1748332258317,-430.0,0.00019726,2]
[362479335,1748332258327,-430.0,0.00019726,2]
[362479336,1748332258337,-430.0,0.00019726,2]
[362479337,1748332258347,-430.0,0.00019726,2]
[362479338,1748332258356,-430.0,0.00019726,2]
[362479339,1748332258366,-430.0,0.00019726,2]
[362479340,1748332258375,-430.0,0.00019726,2]
[362479341,1748332258384,-430.0,0.00019726,2]
[362479342,1748332258395,-474.53770321,0.00019726,2]
[362479343,1748332258404,-430.0,0.00019726,2]
[362479344,1748332258414,-430.0,0.00019726,2]
[362479345,1748332258423,-430.0,0.00019726,2]
[362479346,1748332258433,-430.0,0.00019726,2]
[362479347,1748332258443,-430.0,0.00019726,2]
[362479348,1748332258453,-430.0,0.00019726,2]
[362479349,1748332258462,-430.0,0.00019726,2]
[362479350,1748332258472,-430.0,0.00019726,2]
[362479351,1748332258483,-430.0,0.00019726,2]
[362479352,1748332258492,-430.0,0.00019726,2]
[362479353,1748332258502,-430.0,0.00019726,2]
[362479354,1748332258513,-430.0,0.00019726,2]
[362479355,1748332258522,-430.0,0.00019726,2]
[362479356,1748332258532,-430.0,0.00019726,2]
[362479357,1748332258542,-471.67,0.00019726,2]
[362479358,1748332258552,-430.0,0.00019726,2]
[362479359,1748332258561,-1600.87,0.00019726,2]
[362479360,1748332258571,-430.0,0.00019726,2]
[362479361,1748332258580,-430.0,0.00019726,2]
[362479362,1748332258590,-430.0,0.00019726,2]
[362479363,1748332258600,-430.0,0.00019726,2]
[362479364,1748332258609,-430.0,0.00019726,2]
[362479365,1748332258619,-430.0,0.00019726,2]
[362479366,1748332258628,-662.19,0.00019726,2]
[362479367,1748332258638,-449.15,0.00019726,2]
[362479368,1748332258648,-472.47,0.00019726,2]
[362479369,1748332258657,-430.0,0.00019726,2]
[362479370,1748332258667,-1265.02,0.00019726,2]
[362479371,1748332258676,-430.0,0.00019726,2]
[362479372,1748332258686,-430.0,0.00019726,2]
[362479373,1748332258696,-562.78,0.00019726,2]
[362479374,1748332258706,-430.0,0.00019726,2]
[362479375,1748332258715,-430.0,0.00019726,2]
[362479376,1748332258724,-430.0,0.00019726,2]
[362479377,1748332258734,-430.0,0.00019726,2]
[362479378,1748332258744,-292.66013179,0.00019726,2]
[362479379,1748332258757,-137.33986821,0.00019726,2]
[362479380,1748332258767,-439.23,0.00019726,2]
[362479381,1748332258777,-430.0,0.00019726,2]
[362479382,1748332258787,-430.0,0.00019726,2]
[362479383,1748332258797,-372.37659499,0.00019726,2]
[362479384,1748332258808,-57.62340501,0.00019726,2]
[362479385,1748332258818,-403.76508882,0.00019726,2]
[362479386,1748332258830,-26.23491118,0.00019726,2]
[362479387,1748332258841,-430.0,0.00019726,2]
[362479388,1748332258850,-351.58541044,0.00019726,2]
[362479389,1748332258862,-144.21458956,0.00019726,2]
[362479390,1748332258873,-430.0,0.00019726,2]
[362479391,1748332258883,-430.0,0.00019726,2]
[362479392,1748332258892,-430.0,0.00019726,2]
[362479393,1748332258902,-364.65332051,0.00019726,2]
[362479394,1748332258914,-65.34667949,0.00019726,2]
[362479395,1748332258924,-430.0,0.00019726,2]
[362479396,1748332258934,-430.0,0.00019726,2]
[362479397,1748332258944,-430.0,0.00019726,2]
[362479398,1748332258953,-565.74,0.00019726,2]
[362479399,1748332258962,-430.0,0.00019726,2]
[362479400,1748332258971,-430.0,0.00019726,2]
[362479401,1748332258980,-430.0,0.00019726,2]
[362479402,1748332258989,-430.0,0.00019726,2]
[362479403,1748332258998,-430.0,0.00019726,2]
[362479404,1748332259007,-933.91,0.00019726,2]
[362479405,1748332259017,-732.2,0.00019726,2]
[362479406,1748332259026,-627.81,0.00019726,2]
[362479407,1748332259035,-430.0,0.00019726,2]
[362479408,1748332259045,-430.0,0.00019726,2]
[362479409,1748332259054,-649.99,0.00019726,2]
[362479410,1748332259064,-212.62946336,0.00019848,2]
[362479411,1748332259074,-842.5625,0.00019848,2]
[362479412,1748332259083,-12656.54583329,0.00019848,2]
[362479413,1748332259094,-204.40288401,0.000199,2]
[362479414,1748332259103,-584.45682528,0.0001991,2]
[362479415,1748332259112,-500.0,0.00019973,2]
[362479416,1748332259122,-500.0,0.00019973,2]
[362479417,1748332259131,-500.0,0.00019973,2]
[362479418,1748332259140,-500.0,0.00019973,2]
[362479419,1748332259150,-418.56086243,0.00019973,2]
[362479420,1748332259241,-500.0,0.00019973,2]
[362479421,1748332259258,-500.0,0.00019973,2]
[362479422,1748332259268,-500.0,0.00019973,2]
[362479423,1748332259276,-506.91548535,0.00019973,2]
[362479424,1748332259286,-207.4,0.00019988,2]
[362479425,1748332259295,-494.86,0.0001999,3]
[362479426,1748332259305,-430.0,0.0002,2]
[362479427,1748332259315,-430.0,0.0002,2]
[362479428,1748332259325,-541.49316756,0.0002,2]
[362479429,1748332259335,-430.0,0.0002,2]
[362479430,1748332259346,-430.0,0.0002,2]
[362479431,1748332259356,-86754.71,0.0002,2]
[362479432,1748332259366,-430.0,0.0002,2]
[362479433,1748332259375,-430.0,0.0002,2]
[362479434,1748332259384,-430.0,0.0002,2]
[362479435,1748332259395,-430.0,0.0002,2]
[362479436,1748332259405,-430.0,0.0002,2]
[362479437,1748332259415,-459.2,0.0002,2]
[362479438,1748332259424,-430.0,0.0002,2]
[362479439,1748332259435,-430.0,0.0002,2]
[362479440,1748332259445,-430.0,0.0002,2]
[362479441,1748332259454,-430.0,0.0002,2]
[362479442,1748332259463,-542.76,0.0002,2]
[362479443,1748332259473,-430.0,0.0002,2]
[362479444,1748332259483,-430.0,0.0002,2]
[362479445,1748332259492,-430.0,0.0002,2]
[362479446,1748332259501,-430.0,0.0002,2]
[362479447,1748332259511,-430.0,0.0002,2]
[362479448,1748332259520,-430.0,0.0002,2]
[362479449,1748332259529,-430.0,0.0002,2]
[362479450,1748332259539,-430.0,0.0002,2]
[362479451,1748332259549,-430.0,0.0002,2]
[362479452,1748332259558,-430.0,0.0002,2]
[362479453,1748332259568,-459.77,0.0002,2]
[362479454,1748332259577,-430.0,0.0002,2]
[362479455,1748332259588,-463.75281505,0.0002,2]
[362479456,1748332259598,-430.0,0.0002,2]
[362479457,1748332259607,-430.0,0.0002,2]
[362479458,1748332259618,-430.0,0.0002,2]
[362479459,1748332259627,-430.0,0.0002,2]
[362479460,1748332259637,-430.0,0.0002,2]
[362479461,1748332259647,-430.0,0.0002,2]
[362479462,1748332259657,-430.0,0.0002,2]
[362479463,1748332259667,-430.0,0.0002,2]
[362479464,1748332259678,-430.0,0.0002,2]
[362479465,1748332259688,-430.0,0.0002,2]
[362479466,1748332259697,-430.0,0.0002,2]
[362479467,1748332259707,-430.0,0.0002,2]
[362479468,1748332259717,-430.0,0.0002,2]
[362479469,1748332259726,-430.0,0.0002,2]
[362479470,1748332259736,-430.0,0.0002,2]
[362479471,1748332259746,-430.0,0.0002,2]
[362479472,1748332259756,-430.0,0.0002,2]
[362479473,1748332259766,-430.0,0.0002,2]
[362479474,1748332259776,-430.0,0.0002,2]
[362479475,1748332259786,-430.0,0.0002,2]
[362479476,1748332259795,-430.0,0.0002,2]
[362479477,1748332259804,-430.0,0.0002,2]
[362479478,1748332259814,-430.0,0.0002,2]
[362479479,1748332259823,-460.61382357,0.0002,2]
[362479480,1748332259833,-430.0,0.0002,2]
[362479481,1748332259844,-430.0,0.0002,2]
[362479482,1748332259853,-430.0,0.0002,2]
[362479483,1748332259863,-430.0,0.0002,2]
[362479484,1748332259872,-430.0,0.0002,2]
[362479485,1748332259882,-430.0,0.0002,2]
[362479486,1748332259892,-430.0,0.0002,2]
[362479487,1748332259902,-430.0,0.0002,2]
[362479488,1748332259911,-430.0,0.0002,2]
[362479489,1748332259921,-430.0,0.0002,2]
[362479490,1748332259930,-430.0,0.0002,2]
[362479491,1748332259940,-430.0,0.0002,2]
[362479492,1748332259950,-430.0,0.0002,2]
[362479493,1748332259959,-430.0,0.0002,2]
[362479494,1748332259969,-430.0,0.0002,2]
[362479495,1748332259979,-430.0,0.0002,2]
[362479496,1748332259988,-430.0,0.0002,2]
[362479497,1748332259997,-430.0,0.0002,2]
[362479498,1748332260007,-430.0,0.0002,2]
[362479499,1748332260017,-471.67,0.0002,2]
[362479500,1748332260027,-430.0,0.0002,2]
[362479501,1748332260037,-1600.87,0.0002,2]
[362479502,1748332260048,-430.0,0.0002,2]
[362479503,1748332260058,-430.0,0.0002,2]
[362479504,1748332260068,-430.0,0.0002,2]
[362479505,1748332260078,-430.0,0.0002,2]
[362479506,1748332260090,-662.19,0.0002,2]
[362479507,1748332260100,-449.15,0.0002,2]
[362479508,1748332260110,-472.47,0.0002,2]
[362479509,1748332260121,-1265.02,0.0002,2]
[362479510,1748332260131,-430.0,0.0002,2]
[362479511,1748332260140,-562.78,0.0002,2]
[362479512,1748332260150,-430.0,0.0002,2]
[362479513,1748332260159,-430.0,0.0002,2]
[362479514,1748332260168,-430.0,0.0002,2]
[362479515,1748332260178,-430.0,0.0002,2]
[362479516,1748332260188,-439.23,0.0002,2]
[362479517,1748332260197,-430.0,0.0002,2]
[362479518,1748332260206,-430.0,0.0002,2]
[362479519,1748332260216,-430.0,0.0002,2]
[362479520,1748332260225,-430.0,0.0002,2]
[362479521,1748332260235,-430.0,0.0002,2]
[362479522,1748332260245,-495.8,0.0002,2]
[362479523,1748332260254,-430.0,0.0002,2]
[362479524,1748332260264,-430.0,0.0002,2]
[362479525,1748332260273,-246.84,0.0002,2]
[362479526,1748332260283,-430.0,0.0002,2]
[362479527,1748332260293,-430.0,0.0002,2]
[362479528,1748332260302,-430.0,0.0002,2]
[362479529,1748332260313,-430.0,0.0002,2]
[362479530,1748332260410,-565.74,0.0002,2]
[362479531,1748332260420,-430.0,0.0002,2]
[362479532,1748332260430,-430.0,0.0002,2]
[362479533,1748332260439,-430.0,0.0002,2]
[362479534,1748332260449,-430.0,0.0002,2]
[362479535,1748332260458,-430.0,0.0002,2]
[362479536,1748332260467,-933.91,0.0002,2]
[362479537,1748332260477,-732.2,0.0002,2]
[362479538,1748332260486,-627.81,0.0002,2]
[362479539,1748332260495,-430.0,0.0002,2]
[362479540,1748332260504,-430.0,0.0002,2]
[362479541,1748332260514,-649.99,0.0002,2]
[362479542,1748332260523,-267.83,0.0002011,2]
[362479543,1748332260533,-153.27478592,0.00020144,4]
[362479544,1748332260542,-376.9215884,0.00020219,2]
[362479545,1748332260552,-364.0317976,0.00020219,2]
[362479546,1748332260562,-364.0317976,0.00020219,2]
[362479547,1748332260571,-430.0,0.00020273,2]
[362479548,1748332260581,-430.0,0.00020273,2]
[362479549,1748332260590,-296.33,0.00020273,2]
[362479550,1748332260600,-430.0,0.00020273,2]
[362479551,1748332260610,-430.0,0.00020273,2]
[362479552,1748332260620,-430.0,0.00020273,2]
[362479553,1748332260629,-430.0,0.00020273,2]
[362479554,1748332260639,-274.2,0.00020273,2]
[362479555,1748332260650,-430.0,0.00020273,2]
[362479556,1748332260660,-420.0,0.00020273,2]
[362479557,1748332260670,-430.0,0.00020273,2]
[362479558,1748332260680,-430.0,0.00020273,2]
[362479559,1748332260691,-430.0,0.00020273,2]
[362479560,1748332260701,-430.0,0.00020273,2]
[362479561,1748332260711,-430.0,0.00020273,2]
[362479562,1748332260722,-459.77,0.00020273,2]
[362479563,1748332260733,-430.0,0.00020273,2]
[362479564,1748332260743,-430.0,0.00020273,2]
[362479565,1748332260753,-430.0,0.00020273,2]
[362479566,1748332260764,-430.0,0.00020273,2]
[362479567,1748332260774,-430.0,0.00020273,2]
[362479568,1748332260784,-430.0,0.00020273,2]
[362479569,1748332260794,-430.0,0.00020273,2]
[362479570,1748332260803,-430.0,0.00020273,2]
[362479571,1748332260813,-430.0,0.00020273,2]
[362479572,1748332260823,-430.0,0.00020273,2]
[362479573,1748332260832,-430.0,0.00020273,2]
[362479574,1748332260842,-430.0,0.00020273,2]
[362479575,1748332260852,-430.0,0.00020273,2]
[362479576,1748332260861,-430.0,0.00020273,2]
[362479577,1748332260870,-430.0,0.00020273,2]
[362479578,1748332260880,-430.0,0.00020273,2]
[362479579,1748332260889,-430.0,0.00020273,2]
[362479580,1748332260899,-430.0,0.00020273,2]
[362479581,1748332260913,-430.0,0.00020273,2]
[362479582,1748332260937,-430.0,0.00020273,2]
[362479583,1748332260956,-430.0,0.00020273,2]
[362479584,1748332260977,-430.0,0.00020273,2]
[362479585,1748332260999,-430.0,0.00020273,2]
[362479586,1748332261019,-382.71303947,0.00020273,2]
[362479587,1748332261039,-430.0,0.00020273,2]
[362479588,1748332261057,-430.0,0.00020273,2]
[362479589,1748332261072,-430.0,0.00020273,2]
[362479590,1748332261092,-430.0,0.00020273,2]
[362479591,1748332261114,-430.0,0.00020273,2]
[362479592,1748332261135,-430.0,0.00020273,2]
[362479593,1748332261150,-471.67,0.00020273,2]
[362479594,1748332261172,-430.0,0.00020273,2]
[362479595,1748332261187,-1600.87,0.00020273,2]
[362479596,1748332261204,-430.0,0.00020273,2]
[362479597,1748332261218,-430.0,0.00020273,2]
[362479598,1748332261235,-662.19,0.00020273,2]
[362479599,1748332261251,-449.15,0.00020273,2]
[362479600,1748332261268,-472.47,0.00020273,2]
[362479601,1748332261284,-1265.02,0.00020273,2]
[362479602,1748332261301,-430.0,0.00020273,2]
[362479603,1748332261317,-562.78,0.00020273,2]
[362479604,1748332261335,-430.0,0.00020273,2]
[362479605,1748332261353,-430.0,0.00020273,2]
[362479606,1748332261370,-430.0,0.00020273,2]
[362479607,1748332261386,-430.0,0.00020273,2]
[362479608,1748332261402,-439.23,0.00020273,2]
[362479609,1748332261418,-430.0,0.00020273,2]
[362479610,1748332261436,-430.0,0.00020273,2]
[362479611,1748332261448,-430.0,0.00020273,2]
[362479612,1748332261458,-430.0,0.00020273,2]
[362479613,1748332261468,-430.0,0.00020273,2]
[362479614,1748332261478,-495.8,0.00020273,2]
[362479615,1748332261487,-430.0,0.00020273,2]
[362479616,1748332261497,-238.07994512,0.00020273,2]
[362479617,1748332261507,-430.0,0.00020273,2]
[362479618,1748332261517,-430.0,0.00020273,2]
[362479619,1748332261527,-430.0,0.00020273,2]
[362479620,1748332261537,-430.0,0.00020273,2]
[362479621,1748332261546,-565.74,0.00020273,2]
[362479622,1748332261556,-430.0,0.00020273,2]
[362479623,1748332261566,-430.0,0.00020273,2]
[362479624,1748332261576,-430.0,0.00020273,2]
[362479625,1748332261585,-430.0,0.00020273,2]
[362479626,1748332261597,-430.0,0.00020273,2]
[362479627,1748332261607,-933.91,0.00020273,2]
[362479628,1748332261616,-732.2,0.00020273,2]
[362479629,1748332261626,-627.81,0.00020273,2]
[362479630,1748332261636,-430.0,0.00020273,2]
[362479631,1748332261873,-430.0,0.00020273,2]
[362479632,1748332261889,-161.34873999,0.00020448,2]
[362479633,1748332261901,-204.40288401,0.00020456,3]
[362479634,1748332261911,-1000.0,0.00020521,2]
[362479635,1748332261921,-1000.0,0.00020521,2]
[362479636,1748332261931,-1000.0,0.00020521,2]
[362479637,1748332261941,-500.0,0.00020521,2]
[362479638,1748332261950,-500.0,0.00020522,2]